bitfinex/quotes_SOLUSD_20240725
["timestamp","ask_amount","ask_price","bid_price","bid_amount"]
[1721922220111,20.0,170.24,170.2,5.8753]
[1721922220784,25.8741,170.24,170.2,5.8753]
[1721922220980,5.8745,170.23,170.19,35.9667]
[1721922221185,20.0,170.24,170.19,35.9667]
[1721922221402,5.8741,170.24,170.2,5.8753]
[1721922221580,5.8737,170.25,170.21,5.8749]
[1721922221781,1.01421962,170.32,170.24,14.6849]
[1721922222081,5.872,170.3,170.25,5.8734]
[1721922222691,5.8717,170.31,170.26,5.8733]
[1721922222907,1.01399552,170.34,170.24,14.6849]
[1721922223205,14.6776,170.33,170.24,14.6849]
[1721922223413,14.6776,170.33,170.2,6.513]
[1721922223414,5.873,170.27,170.22,5.8747]
[1721922223990,14.6799,170.3,170.21,14.6875]
[1721922224196,20.0,170.29,170.2,6.513]
[1721922224404,59.6822,170.28,170.2,6.513]
[1721922224695,5.8747,170.22,170.2,6.513]
[1721922224892,5.8754,170.2,170.19,15.4022]
[1721922225098,14.6912,170.17,170.08,5.8794]
[1721922225393,5.8778,170.14,170.09,5.8791]
[1721922225717,65.0,170.13,170.09,5.8791]
[1721922225883,70.8778,170.13,170.08,5.8795]
[1721922226209,48.2986,170.2,170.09,14.6977]
[1721922226423,5.8771,170.15,170.1,5.8788]
[1721922226705,45.0,170.14,170.1,5.8788]
[1721922227420,5.8767,170.17,170.09,14.6977]
[1721922227715,20.0,170.16,170.11,14.6955]
[1721922227885,25.8768,170.16,170.11,20.574]
[1721922228085,20.0,170.16,170.11,20.574]
[1721922228312,20.0,170.16,170.11,14.6955]
[1721922228509,5.8764,170.18,170.13,5.8775]
[1721922228812,70.8765,170.17,170.12,5.8781]
[1721922229111,65.0,170.17,170.12,5.8781]
[1721922229302,70.8766,170.17,170.12,5.8781]
[1721922230891,65.0,170.17,170.13,5.8778]
[1721922231088,65.0,170.17,170.12,5.8781]
[1721922231407,70.8767,170.17,170.12,5.8781]
[1721922231786,5.8768,170.16,170.11,20.5739]
[1721922232000,65.0,170.17,170.11,14.6955]
[1721922232897,5.8774,170.15,170.11,14.6955]
[1721922233218,5.8768,170.16,170.12,5.8781]
[1721922233417,45.0,170.15,170.12,5.8781]
[1721922234015,45.0,170.15,170.11,20.5739]
[1721922234909,20.0,170.17,170.13,5.8778]
[1721922235218,5.8765,170.17,170.12,5.8781]
[1721922235426,20.0,170.16,170.12,5.8781]
[1721922235720,20.0,170.19,170.14,14.6936]
[1721922236223,5.8763,170.18,170.13,11.9673]
[1721922236714,14.6888,170.2,170.13,6.0897]
[1721922236890,20.0,170.17,170.13,6.0897]
[1721922237090,20.0,170.17,170.13,11.9675]
[1721922237487,20.0,170.17,170.13,11.9674]
[1721922238316,20.0,170.17,170.14,5.8774]
[1721922238614,20.0,170.18,170.14,5.8774]
[1721922238809,5.8759,170.19,170.14,5.8771]
[1721922238994,20.0,170.18,170.14,5.8771]
[1721922239195,20.0,170.18,170.13,6.0897]
[1721922239399,5.8765,170.17,170.13,6.0897]
[1721922239598,5.8765,170.17,170.12,21.3146]
[1721922239790,5.8775,170.14,170.09,5.8789]
[1721922239998,5.8786,170.11,170.08,22.3792]
[1721922240591,5.8782,170.12,170.08,28.2587]
[1721922240799,5.8782,170.12,170.08,22.3792]
[1721922241318,34.6921,170.16,170.08,16.2733]
[1721922241319,45.0,170.11,170.08,16.2733]
[1721922241502,5.8793,170.09,170.04,37.2787]
[1721922241692,45.0,170.11,170.07,5.8797]
[1721922242021,20.0,170.1,170.04,28.4572]
[1721922242228,20.0,170.1,170.04,22.5764]
[1721922242390,5.8803,170.06,170.04,22.5764]
[1721922242596,5.8799,170.07,170.04,22.5764]
[1721922243117,5.88,170.07,170.04,15.9379]
[1721922243292,5.8803,170.06,170.04,15.9379]
[1721922243496,5.8809,170.04,170.01,0.7998558]
[1721922243713,5.8806,170.05,170.01,0.7998558]
[1721922243914,14.6987,170.09,170.01,0.7998558]
[1721922244211,65.0,170.08,170.01,0.7998558]
[1721922244417,65.0,170.08,170.01,0.2998558]
[1721922244607,5.8816,170.02,170.01,0.2998558]
[1721922245834,50.8816,170.02,170.01,0.2998558]
[1721922245999,5.8816,170.02,170.01,0.2998558]
[1721922246510,10.8591,170.11,170.01,0.2998558]
[1721922246511,31.76197216,170.14,170.04,5.8809]
[1721922246816,1.01502782,170.16,170.02,23.26334402]
[1721922247034,33.26058165,170.16,170.06,5.8802]
[1721922247191,30.91502782,170.16,170.05,5.8805]
[1721922247391,30.91502782,170.16,170.06,5.8802]
[1721922247614,30.91502782,170.16,170.04,14.7023]
[1721922247615,14.6935,170.15,170.04,14.7023]
[1721922247816,5.8799,170.07,170.02,27.9689]
[1721922248012,5.8796,170.08,170.03,5.8811]
[1721922248339,59.694,170.14,170.04,5.8809]
[1721922248540,5.8792,170.09,170.05,5.8805]
[1721922248849,5.8792,170.09,170.04,5.8809]
[1721922249031,30.91502782,170.16,170.07,5.8796]
[1721922249231,23.40251148,170.17,170.02,22.0874]
[1721922249232,14.6934,170.15,170.05,5.8802]
[1721922249439,29.3864,170.15,170.02,22.0874]
[1721922249655,29.3864,170.15,170.02,27.9687]
[1721922249656,5.8802,170.07,170.02,27.9687]
[1721922249954,14.6968,170.11,170.02,22.0874]
[1721922250157,29.9,170.13,170.02,22.0874]
[1721922250449,5.8811,170.04,170.02,22.0874]
[1721922250821,5.8813,170.03,170.02,22.0874]
[1721922251022,5.8816,170.02,170.01,0.2998558]
[1721922251458,5.8815,170.03,170.01,0.2998558]
[1721922251624,14.7002,170.07,170.01,0.2998558]
[1721922251830,5.8816,170.02,170.01,0.2998558]
[1721922252026,50.8816,170.02,170.01,0.2998558]
[1721922252233,70.8816,170.02,170.01,0.2998558]
[1721922252927,5.8841,169.95,169.93,21.0302]
[1721922253128,5.8837,169.96,169.93,21.0302]
[1721922253754,5.884,169.95,169.93,21.0302]
[1721922254125,14.7061,170.0,169.88,22.34658565]
[1721922254449,14.7061,170.0,169.9,5.8858]
[1721922254450,5.8841,169.95,169.9,5.8858]
[1721922254765,5.8841,169.95,169.91,1.17683624]
[1721922255327,5.8837,169.96,169.91,7.06223624]
[1721922255530,5.8837,169.96,169.91,5.8854]
[1721922255745,5.8837,169.96,169.92,5.8851]
[1721922256049,5.8838,169.96,169.91,7.06223568]
[1721922256256,65.0,169.99,169.91,7.06223568]
[1721922256455,5.8835,169.97,169.92,5.8849]
[1721922256662,5.8835,169.97,169.93,5.8847]
[1721922256836,65.0,169.99,169.93,14.7118]
[1721922257249,5.8834,169.97,169.93,14.7118]
[1721922257429,5.8837,169.96,169.91,5.8852]
[1721922257630,5.8837,169.96,169.92,1.17681209]
[1721922257852,70.8827,169.99,169.94,5.8843]
[1721922258054,65.0,169.99,169.9,1.17681059]
[1721922258263,5.8836,169.97,169.91,5.8851]
[1721922258457,25.8837,169.96,169.92,7.06181632]
[1721922258631,65.0,169.99,169.92,5.885]
[1721922258632,5.8833,169.98,169.92,5.885]
[1721922258832,65.0,169.97,169.91,14.713]
[1721922259037,5.8842,169.95,169.91,14.713]
[1721922260048,5.8841,169.95,169.91,20.5983]
[1721922260243,2.3639453,170.02,169.93,14.7115]
[1721922260452,5.8831,169.98,169.91,5.8853]
[1721922260759,5.8835,169.97,169.92,5.885]
[1721922261132,20.0,170.02,169.91,14.7132]
[1721922261336,5.8837,169.96,169.91,20.5986]
[1721922261755,14.7054,170.01,169.91,14.7132]
[1721922261954,65.0,170.0,169.91,20.5985]
[1721922262261,65.0,170.0,169.91,14.7132]
[1721922262558,5.8847,169.93,169.92,1.17680836]
[1721922262762,14.7072,169.99,169.92,1.17680836]
[1721922262945,5.8841,169.95,169.93,1.17681332]
[1721922263260,5.8841,169.95,169.91,1.17682925]
[1721922263473,5.8837,169.96,169.91,7.06212925]
[1721922263663,5.8837,169.96,169.92,5.885]
[1721922263872,5.8842,169.95,169.92,1.17676734]
[1721922264375,14.7072,169.99,169.88,6.4539]
[1721922264376,14.7072,169.99,169.89,5.8861]
[1721922264551,5.8847,169.93,169.88,13.51702108]
[1721922264858,5.8843,169.95,169.9,5.8857]
[1721922265067,5.8843,169.95,169.9,7.06254351]
[1721922265244,5.8843,169.95,169.91,5.8853]
[1721922265450,5.8838,169.96,169.92,1.1768058]
[1721922265753,5.8838,169.96,169.91,5.8853]
[1721922265942,5.8842,169.95,169.9,7.06246015]
[1721922266146,5.885,169.93,169.88,12.3404]
[1721922266346,5.8844,169.94,169.89,5.8858]
[1721922266741,5.8844,169.94,169.9,1.17683429]
[1721922267050,14.7071,169.99,169.89,14.7149]
[1721922267249,5.8836,169.97,169.92,5.885]
[1721922267455,5.883,169.98,169.93,5.8846]
[1721922267659,5.8835,169.97,169.93,5.8846]
[1721922267967,5.8835,169.97,169.92,5.885]
[1721922268169,5.8838,169.96,169.92,5.885]
[1721922268345,5.8834,169.97,169.92,5.885]
[1721922268545,2.3413204,170.03,169.88,7.63072292]
[1721922268546,31.7487204,170.03,169.88,21.1697]
[1721922268771,5.8848,169.93,169.89,7.06294933]
[1721922269066,5.8841,169.95,169.9,7.06255006]
[1721922269582,5.8845,169.94,169.9,7.06255006]
[1721922269867,5.8851,169.92,169.88,21.1697]
[1721922270036,14.7082,169.98,169.88,27.0559]
[1721922270241,5.8852,169.92,169.88,27.0559]
[1721922270440,5.8849,169.93,169.89,7.06310103]
[1721922270662,5.8851,169.92,169.88,13.51712564]
[1721922270867,5.8848,169.93,169.88,7.63082564]
[1721922271375,5.8853,169.92,169.88,7.63082564]
[1721922271671,5.8858,169.9,169.88,6.4539]
[1721922272048,5.8861,169.89,169.88,6.4539]
[1721922273464,14.7123,169.93,169.88,6.4539]
[1721922273465,5.8858,169.9,169.88,6.4539]
[1721922273858,14.7096,169.96,169.89,1.17705686]
[1721922274170,5.8854,169.91,169.9,1.17694664]
[1721922274376,14.7096,169.96,169.9,1.17694664]
[1721922274572,5.8854,169.91,169.9,1.17694664]
[1721922274780,5.8858,169.9,169.88,6.4539]
[1721922274955,14.7117,169.94,169.88,7.63095904]
[1721922275277,5.886,169.9,169.88,6.4539]
[1721922275570,5.886,169.9,169.88,7.63080953]
[1721922275777,5.886,169.9,169.88,6.4539]
[1721922275955,5.8861,169.89,169.88,6.4539]
[1721922277584,5.8858,169.9,169.88,6.4539]
[1721922277759,14.7117,169.94,169.88,6.4539]
[1721922278096,5.8865,169.88,169.87,15.5714]
[1721922282586,5.8862,169.89,169.87,15.5714]
[1721922282885,5.8858,169.9,169.87,15.5714]
[1721922283760,4.1108915,169.96,169.87,15.5714]
[1721922283968,29.03189229,169.98,169.93,5.8846]
[1721922284290,2.38189229,169.98,169.92,6.5238]
[1721922284659,5.8845,169.94,169.92,6.5238]
[1721922284885,5.8847,169.94,169.92,6.5238]
[1721922285069,5.8841,169.95,169.92,6.5238]
[1721922285271,14.7074,169.99,169.92,12.4089]
[1721922285272,5.8837,169.96,169.92,12.4089]
[1721922285661,5.8837,169.96,169.92,6.5238]
[1721922285861,5.8837,169.96,169.92,12.4088]
[1721922286075,26.65,170.01,169.92,12.4088]
[1721922286076,5.8834,169.97,169.92,12.4088]
[1721922286583,26.65,170.01,169.92,6.5238]
[1721922287294,8.12983843,170.03,169.93,1.17653464]
[1721922287468,7.11411913,170.03,169.93,1.17653464]
[1721922287674,5.8827,169.99,169.95,14.7094]
[1721922287882,14.7039,170.03,169.95,15.1312]
[1721922288884,5.8834,169.97,169.95,15.1312]
[1721922289190,5.8831,169.98,169.95,15.1312]
[1721922289867,14.7039,170.03,169.95,15.1312]
[1721922290585,5.8834,169.97,169.95,15.1312]
[1721922290788,5.8831,169.98,169.95,15.1312]
[1721922291495,5.8834,169.97,169.95,15.1312]
[1721922291988,5.8831,169.98,169.95,15.1312]
[1721922293178,5.8827,169.99,169.95,21.0152]
[1721922293560,26.65,170.04,169.96,5.8836]
[1721922293883,17.09881436,170.06,169.96,5.8836]
[1721922293884,5.8823,170.01,169.96,5.8836]
[1721922294197,5.8827,169.99,169.95,35.7246]
[1721922294569,5.8824,170.0,169.95,35.7246]
[1721922294984,5.8806,170.05,170.0,5.882]
[1721922295183,5.8803,170.06,170.01,1.17615671]
[1721922295376,14.6976,170.1,170.02,1.17610641]
[1721922295565,14.6996,170.08,170.0,6.3886]
[1721922295763,5.8817,170.02,170.0,6.3886]
[1721922296586,5.881,170.04,170.0,6.3886]
[1721922296888,5.8806,170.05,170.01,1.17615627]
[1721922297114,5.8802,170.06,170.02,1.17607396]
[1721922297294,14.6985,170.09,170.0,21.0939]
[1721922297475,14.6985,170.09,170.0,6.3886]
[1721922297885,5.881,170.04,170.01,1.17611331]
[1721922298085,26.65,170.11,170.0,6.3886]
[1721922298086,5.8819,170.02,170.0,6.3886]
[1721922298780,41.3522,170.05,169.95,21.1427]
[1721922298977,45.0,170.04,169.95,21.1427]
[1721922299182,26.65,170.05,169.95,21.1427]
[1721922299183,14.7042,170.02,169.95,21.1427]
[1721922299583,41.3517,170.05,169.95,35.852]
[1721922299912,5.881,170.04,169.99,5.8824]
[1721922300483,41.3492,170.08,170.0,5.8823]
[1721922300682,41.3492,170.08,169.97,14.7079]
[1721922300982,5.8802,170.07,169.98,1.17609396]
[1721922301183,5.8803,170.06,170.02,5.8814]
[1721922301491,5.8799,170.07,170.03,1.17602452]
[1721922301690,5.8803,170.06,170.03,1.17602452]
[1721922301907,5.8837,169.96,169.95,21.1427]
[1721922302200,26.65,170.08,169.95,21.1427]
[1721922302402,32.72352895,170.11,170.02,5.8816]
[1721922302601,47.42042895,170.11,170.03,15.4124]
[1721922302906,20.0,170.1,170.04,1.175989]
[1721922303114,5.8792,170.1,170.05,1.17587306]
[1721922303409,53.81948237,170.14,170.04,5.8807]
[1721922303410,5.8794,170.09,170.04,5.8807]
[1721922303610,5.8796,170.08,170.03,37.70232392]
[1721922304181,5.88,170.07,170.03,36.5266]
[1721922304382,26.65,170.14,170.03,21.8239]
[1721922304581,5.8809,170.04,170.03,21.8239]
[1721922305195,5.8807,170.05,170.03,21.8239]
[1721922305496,41.3464,170.11,170.03,21.8239]
[1721922305693,5.8799,170.07,170.03,21.8239]
[1721922306105,5.8795,170.09,170.03,21.8239]
[1721922306316,6.40754372,170.15,170.04,1.17577665]
[1721922306490,5.879,170.1,170.05,20.5814]
[1721922306989,5.8793,170.09,170.05,14.7009]
[1721922307203,14.6954,170.13,170.04,5.8808]
[1721922307390,14.6954,170.13,170.04,15.87737672]
[1721922307584,5.8789,170.1,170.05,7.05597672]
[1721922307985,5.8789,170.1,170.06,5.8801]
[1721922308194,5.8789,170.1,170.05,7.05617672]
[1721922308479,5.8792,170.09,170.05,7.05617847]
[1721922308815,26.65,170.14,170.04,1.17571433]
[1721922309103,5.8807,170.05,170.03,21.8239]
[1721922309313,14.6967,170.11,170.03,21.8239]
[1721922309314,5.8809,170.04,170.03,21.8239]
[1721922309514,5.8823,170.0,169.99,22.7018]
[1721922310414,5.8836,169.97,169.95,21.6203]
[1721922310593,14.7038,170.03,169.95,21.6203]
[1721922310800,26.65,170.05,169.96,1.17650065]
[1721922311108,29.3984,170.08,169.96,1.17650065]
[1721922311109,5.881,170.04,169.99,5.8826]
[1721922311401,26.65,170.08,169.95,21.6203]
[1721922311402,5.882,170.01,169.97,5.8833]
[1721922311604,5.8815,170.03,169.95,21.6203]
[1721922311909,5.8815,170.03,169.98,5.8829]
[1721922312084,5.8805,170.06,170.01,5.8816]
[1721922312289,5.8805,170.06,170.02,1.17607782]
[1721922312502,5.8802,170.06,170.02,7.057549]
[1721922312691,5.8799,170.07,170.03,16.3904]
[1721922312907,26.65,170.11,170.03,16.3904]
[1721922312908,5.8809,170.04,170.03,16.3904]
[1721922313100,14.6995,170.08,169.97,14.7083]
[1721922313101,14.7014,170.06,169.99,16.3904]
[1721922313419,5.883,169.98,169.95,15.0755]
[1721922313707,5.8837,169.96,169.95,15.0755]
[1721922314823,5.8846,169.94,169.92,6.0169]
[1721922315691,5.8847,169.93,169.9,16.0842]
[1721922315917,14.7085,169.97,169.9,16.0842]
[1721922315918,5.8851,169.92,169.9,16.0842]
[1721922316095,14.7085,169.97,169.9,16.0842]
[1721922316294,26.65,169.99,169.9,16.0842]
[1721922316591,5.8834,169.97,169.92,14.712]
[1721922316794,5.8821,170.01,169.94,14.7105]
[1721922316995,5.8821,170.01,169.96,5.8837]
[1721922317317,26.65,170.05,169.97,5.8833]
[1721922317525,19.60044496,170.07,169.98,7.05918047]
[1721922317687,5.8813,170.03,169.98,21.144]
[1721922317891,5.8816,170.02,169.98,15.2611]
[1721922318100,5.882,170.01,169.98,15.2611]
[1721922318315,56.0544,170.05,169.9,22.46883487]
[1721922318498,14.7056,170.01,169.9,22.46912519]
[1721922318704,5.8838,169.96,169.91,5.8852]
[1721922319019,5.8834,169.97,169.92,5.8851]
[1721922319220,14.7056,170.01,169.91,14.7131]
[1721922319221,5.8838,169.96,169.91,20.5985]
[1721922319792,5.8833,169.97,169.92,5.885]
[1721922319993,5.8837,169.96,169.91,20.5985]
[1721922320189,26.65,170.02,169.9,21.2925]
[1721922320190,5.8844,169.94,169.9,21.2925]
[1721922320393,14.7072,169.99,169.9,21.2925]
[1721922320594,20.0,169.98,169.9,21.2925]
[1721922321014,5.8837,169.96,169.9,37.18304869]
[1721922321327,5.8837,169.96,169.91,5.8853]
[1721922321894,5.8841,169.95,169.91,5.8853]
[1721922322100,41.3545,170.02,169.92,5.8849]
[1721922322317,65.0,170.01,169.91,5.8854]
[1721922322496,5.8837,169.96,169.9,36.0064]
[1721922322694,26.65,170.02,169.92,14.7121]
[1721922323022,5.8824,170.0,169.93,1.17645569]
[1721922323336,5.8828,169.99,169.94,20.5944]
[1721922323830,26.65,170.05,169.96,14.7088]
[1721922324022,5.8819,170.02,169.97,5.8832]
[1721922324228,15.7168219,170.06,169.97,5.8832]
[1721922324532,5.882,170.01,169.96,20.5924]
[1721922324718,5.8827,169.99,169.95,5.884]
[1721922325239,14.7029,170.04,169.95,5.884]
[1721922325240,5.8823,170.0,169.95,5.8839]
[1721922325532,5.8827,169.99,169.95,5.8839]
[1721922325918,5.8822,170.01,169.97,5.8833]
[1721922326416,41.3519,170.05,169.95,14.7095]
[1721922326730,5.8818,170.02,169.97,5.883]
[1721922327032,4.89984496,170.07,169.97,14.7077]
[1721922327232,5.8806,170.06,170.01,5.8818]
[1721922327437,5.8806,170.05,170.01,5.8818]
[1721922327638,20.0,170.07,169.99,14.7059]
[1721922327938,5.8815,170.03,169.99,14.7059]
[1721922328234,46.65,170.08,169.96,37.4012]
[1721922328433,14.7021,170.05,169.96,37.4012]
[1721922328736,14.7021,170.05,169.96,22.6923]
[1721922328938,5.8824,170.0,169.96,22.6923]
[1721922329520,14.7038,170.03,169.96,22.6923]
[1721922329842,5.8833,169.97,169.96,22.6923]
[1721922330540,5.884,169.96,169.92,14.7123]
[1721922330728,14.7054,170.01,169.91,28.1163]
[1721922330932,65.0,170.0,169.91,28.1163]
[1721922331341,14.7072,169.99,169.91,22.2312]
[1721922331639,45.0,169.98,169.91,16.0607]
[1721922331943,45.0,169.98,169.89,14.7151]
[1721922332139,5.8848,169.93,169.89,14.7151]
[1721922333120,5.8848,169.93,169.88,5.8864]
[1721922333430,45.0,169.98,169.89,5.8859]
[1721922333636,5.8837,169.96,169.88,15.89251978]
[1721922333936,5.8841,169.95,169.89,5.8858]
[1721922334127,5.8845,169.94,169.89,5.8858]
[1721922334670,5.8844,169.94,169.89,5.8861]
[1721922335043,5.8832,169.98,169.94,5.8843]
[1721922335247,5.8834,169.97,169.91,14.7129]
[1721922335442,5.8834,169.97,169.92,5.885]
[1721922335624,34.7064,170.0,169.91,14.7129]
[1721922335820,5.8837,169.96,169.91,20.5981]
[1721922336129,5.8833,169.97,169.92,5.8848]
[1721922336732,389.2,170.04,169.95,30.954]
[1721922336928,389.2,170.04,169.96,5.8836]
[1721922337229,5.8827,169.99,169.95,37.6183]
[1721922337434,5.8837,169.96,169.95,22.9086]
[1721922337637,5.8837,169.96,169.95,16.2443]
[1721922338232,14.7067,169.99,169.91,22.2151]
[1721922338438,5.8834,169.97,169.92,5.8851]
[1721922338853,14.7044,170.02,169.93,5.8847]
[1721922338854,5.8831,169.98,169.93,5.8847]
[1721922339149,5.8827,169.99,169.93,14.7115]
[1721922339331,5.883,169.98,169.93,21.77253176]
[1721922339526,5.883,169.98,169.93,20.596]
[1721922340130,5.8834,169.97,169.93,20.596]
[1721922340356,5.8841,169.95,169.92,1.17653134]
[1721922340552,5.8844,169.94,169.91,22.2151]
[1721922340745,14.708,169.98,169.91,22.2151]
[1721922341254,5.884,169.96,169.92,1.17682771]
[1721922341457,20.0,170.04,169.91,22.2151]
[1721922341649,5.8834,169.97,169.93,5.8844]
[1721922341832,5.8834,169.97,169.91,28.1002]
[1721922342179,5.8838,169.96,169.92,5.885]
[1721922342345,5.8834,169.97,169.92,5.885]
[1721922342547,5.8839,169.96,169.92,5.885]
[1721922342743,5.8835,169.97,169.92,5.8851]
[1721922343350,5.8835,169.97,169.93,5.8846]
[1721922343861,5.8827,169.99,169.95,5.8839]
[1721922344042,5.8823,170.0,169.95,7.06031895]
[1721922344239,5.8824,170.0,169.95,20.5936]
[1721922345339,5.8828,169.99,169.95,14.7096]
[1721922346650,5.883,169.98,169.95,14.7096]
[1721922347239,5.8827,169.99,169.95,14.7096]
[1721922347561,14.7037,170.03,169.95,20.5936]
[1721922347740,5.8814,170.03,169.97,14.708]
[1721922347943,14.7009,170.06,169.98,15.4498]
[1721922348143,5.8813,170.03,169.98,21.3327]
[1721922348353,5.882,170.01,169.98,15.4498]
[1721922348761,14.703,170.04,169.94,30.1604]
[1721922349064,14.703,170.04,169.95,5.8839]
[1721922349065,5.8826,170.0,169.95,5.8839]
[1721922349261,5.8826,170.0,169.95,7.06028103]
[1721922349472,5.8826,170.0,169.95,5.8839]
[1721922349839,14.703,170.04,169.94,31.33682037]
[1721922350041,5.8824,170.0,169.96,5.8836]
[1721922350463,5.8824,170.0,169.95,5.8839]
[1721922350840,5.8827,169.99,169.95,5.8839]
[1721922351564,5.8824,170.0,169.95,5.8839]
[1721922351768,5.8819,170.02,169.96,5.8837]
[1721922351949,14.7002,170.07,170.0,5.8822]
[1721922352142,14.7002,170.07,169.97,6.6399]
[1721922352143,5.8802,170.07,169.97,6.6399]
[1721922352466,5.8807,170.05,170.0,14.7053]
[1721922352678,5.8807,170.05,170.01,1.17608141]
[1721922353468,5.8807,170.05,170.02,1.1760791]
[1721922353677,5.8806,170.05,170.0,20.5875]
[1721922353870,5.88,170.07,170.02,5.8815]
[1721922354078,14.6967,170.13,170.03,1.1759336]
[1721922354250,260.50754372,170.14,170.03,1.1759336]
[1721922354588,5.8791,170.1,170.05,5.8805]
[1721922354869,5.8791,170.1,170.05,13.56506411]
[1721922355378,5.8792,170.09,170.05,7.68456411]
[1721922355549,5.8789,170.1,170.05,13.56506411]
[1721922355753,5.8789,170.1,170.05,12.3893]
[1721922355970,5.8802,170.06,170.05,6.5088]
[1721922356150,14.697,170.11,170.05,6.5088]
[1721922356354,5.8802,170.06,170.05,6.5088]
[1721922356555,5.88,170.07,170.05,6.5088]
[1721922356968,5.8802,170.06,170.05,6.5088]
[1721922357277,14.6986,170.09,170.01,22.985]
[1721922357278,5.881,170.04,170.01,22.985]
[1721922357580,5.8806,170.06,170.01,28.8669]
[1721922357760,44.6156,170.12,170.02,5.8813]
[1721922357964,5.8802,170.07,170.02,5.8813]
[1721922358145,14.6956,170.12,170.04,5.8807]
[1721922358350,5.8797,170.08,170.02,14.7036]
[1721922358773,5.8793,170.09,170.04,5.8808]
[1721922358969,5.8795,170.09,170.04,5.8808]
[1721922359175,14.6931,170.15,170.04,14.7018]
[1721922359480,21.10264372,170.17,170.05,1.17568003]
[1721922359768,5.8779,170.13,170.08,5.8795]
[1721922360077,5.8782,170.12,170.08,20.5778]
[1721922360269,5.8782,170.12,170.08,31.2058]
[1721922360480,5.8785,170.11,170.08,16.5075]
[1721922360770,21.09924372,170.17,170.08,16.5075]
[1721922360975,389.2,170.21,170.09,6.3194]
[1721922361178,389.2,170.21,170.1,1.17527921]
[1721922361351,61.1125,170.25,170.13,14.6938]
[1721922361675,5.8761,170.18,170.13,20.5713]
[1721922361979,5.8758,170.19,170.14,5.8774]
[1721922362285,5.8752,170.21,170.17,6.598]
[1721922362570,59.29,170.25,170.15,16.4944]
[1721922362776,29.92,170.25,170.15,32.36159677]
[1721922362979,5.8748,170.22,170.17,5.8761]
[1721922363276,14.6826,170.27,170.15,32.36153566]
[1721922363572,14.6826,170.27,170.16,5.8764]
[1721922363573,5.8751,170.21,170.16,5.8764]
[1721922363950,7.06843954,170.29,170.18,14.6898]
[1721922364163,14.68,170.3,170.18,14.6898]
[1721922364357,5.874,170.25,170.2,5.8752]
[1721922364563,5.8745,170.23,170.18,20.5656]
[1721922364951,5.8741,170.24,170.19,5.8757]
[1721922365160,5.3741,170.24,170.19,5.8757]
[1721922365653,5.8737,170.25,170.21,5.8748]
[1721922365875,44.5991,170.31,170.22,5.8747]
[1721922366076,5.8728,170.28,170.22,14.686]
[1721922366368,2.37043835,170.32,170.22,21.0064]
[1721922366578,20.73035483,170.34,170.23,16.6069]
[1721922367048,5.8724,170.29,170.23,16.6069]
[1721922367451,5.873,170.27,170.23,16.6069]
[1721922367667,14.6767,170.34,170.23,16.6069]
[1721922367668,5.874,170.24,170.23,16.6069]
[1721922367871,14.6825,170.27,170.19,16.6069]
[1721922368287,5.8754,170.2,170.19,16.6069]
[1721922368485,14.6869,170.22,170.15,16.6069]
[1721922368706,5.8771,170.15,170.14,6.3204]
[1721922368989,29.3748,170.22,170.11,16.6069]
[1721922368990,5.8779,170.13,170.11,16.6069]
[1721922369568,5.8779,170.13,170.11,17.78238846]
[1721922370083,5.8782,170.12,170.11,17.78238846]